[Event "FIDE World Rapid-ch Open 2018"]
[White "Gutenev, Alexander"]
[Black "Hirneise, Jens"]
[Site "St. Petersburg"]
[Round "14.81"]
[Annotator "ChessBase"]
[Result "1-0"]
[Date "2018.12.28"]
[WhiteElo "2456"]
[BlackElo "2371"]
[PlyCount "81"]
[TimeControl "900+10"]

1. e4 {[%emt 0:0:0]} c5 {[%emt 0:0:0]} 2. Nf3 {[%emt 0:0:0]} d6 {[%emt 0:0:0]} 3. d4 {[%emt 0:0:0]} cxd4 {[%emt 0:0:0]} 4. Nxd4 {[%emt 0:0:0]} Nf6 {[%emt 0:0:0]} 5. Nc3 {[%emt 0:0:0]} Bd7 {[%emt 0:0:0]} 6. Bg5 {[%emt 0:0:2]
} e6 {[%emt 0:0:0]} 7. Qd2 {[%emt 0:0:8]} h6 {[%emt 0:0:2]} 8. Be3 {[%emt 0:1:3]} Ng4 {[%emt 0:0:6]} 9. 0-0-0 {[%emt 0:0:17]} Nxe3 {[%emt 0:0:3]
} 10. Qxe3 {[%emt 0:0:1]} a6 {[%emt 0:0:8]} 11. f4 {[%emt 0:0:0]} Nc6 {[%emt 0:0:44]} 12. Kb1 {[%emt 0:0:8]} Qb6 {[%emt 0:0:48]} 13. g3 {[%emt 0:1:57]} Nxd4 {[%emt 0:1:51]} 14. Rxd4 {[%emt 0:0:12]} Be7 {[%emt 0:0:50]
} 15. Qd2 {[%emt 0:0:30]} 0-0 {[%emt 0:1:18]} 16. Bg2 {[%emt 0:0:0]} Bc6 {[%emt 0:0:24]} 17. Rd1 {[%emt 0:0:26]} Rfd8 {[%emt 0:0:21]} 18. g4 {[%emt 0:0:26]} Qc5 {[%emt 0:1:15]} 19. Na4 {[%emt 0:2:13]} Qa7 {[%emt 0:0:0]} 20. Nc3 {[%emt 0:0:3]} b5 {[%emt 0:0:29]} 21. g5 {[%emt 0:0:10]} hxg5 {[%emt 0:0:18]} 22. fxg5 {[%emt 0:0:1]} Qc5 {[%emt 0:0:35]} 23. h4 {[%emt 0:0:27]
} Qe5 {[%emt 0:0:48]} 24. Nd5 {[%emt 0:1:3]} Bf8 {[%emt 0:0:0]} 25. Nf4 {[%emt 0:1:24]} g6 {[%emt 0:0:9]} 26. c3 {[%emt 0:0:38]} Bg7 {[%emt 0:0:45]
} 27. Ka1 {[%emt 0:3:18]} b4 {[%emt 0:2:36]} 28. Rxb4 {[%emt 0:0:0]} a5 {[%emt 0:0:3]} 29. Rc4 {[%emt 0:0:28]} Qb5 {[%emt 0:0:36]} 30. Bf1 {[%emt 0:0:46]} Qb7 {[%emt 0:0:16]} 31. h5 {[%emt 0:0:21]} gxh5 {[%emt 0:1:36]
} 32. Nxh5 {[%emt 0:0:3]} d5 {[%emt 0:0:46]} 33. Nf6+ {[%emt 0:0:14]
} Kf8 {[%emt 0:0:39]} 34. exd5 {[%emt 0:0:10]} exd5 {[%emt 0:0:0]} 35. Rf4 {[%emt 0:0:31]} Rab8 {[%emt 0:0:19]} 36. g6 {[%emt 0:0:44]} Bh6 {[%emt 0:0:1]} 37. Nh7+ {[%emt 0:0:36]} Kg8 {[%emt 0:0:12]} 38. Rxf7 {[%emt 0:0:29]
} Qxf7 {[%emt 0:0:17]} 39. gxf7+ {[%emt 0:0:2]} Kxh7 {[%emt 0:0:0]} 40. Bd3+ {[%emt 0:0:5]} Kg7 {[%emt 0:0:3]} 41. Rg1+ {[%emt 0:0:5]
} 1-0

[Event "FIDE World Rapid-ch Open 2018"]
[White "Yeritsyan, Aram"]
[Black "Iljiushenok, Ilia"]
[Site "St. Petersburg"]
[Round "14.82"]
[Annotator "ChessBase"]
[Result "1-0"]
[Date "2018.12.28"]
[WhiteElo "2372"]
[BlackElo "2533"]
[PlyCount "75"]
[TimeControl "900+10"]

1. e4 {[%emt 0:0:0]} c5 {[%emt 0:0:0]} 2. Nf3 {[%emt 0:0:0]} e6 {[%emt 0:0:0]} 3. d4 {[%emt 0:0:0]} cxd4 {[%emt 0:0:0]} 4. Nxd4 {[%emt 0:0:0]} Nc6 {[%emt 0:0:0]} 5. Nb5 {[%emt 0:0:2]} d6 {[%emt 0:0:3]} 6. c4 {[%emt 0:0:1]
} Nf6 {[%emt 0:0:8]} 7. N1c3 {[%emt 0:0:1]} a6 {[%emt 0:0:0]} 8. Na3 {[%emt 0:0:1]} Be7 {[%emt 0:0:15]} 9. Be2 {[%emt 0:0:1]} 0-0 {[%emt 0:0:4]
} 10. 0-0 {[%emt 0:0:4]} b6 {[%emt 0:0:11]} 11. Be3 {[%emt 0:0:0]} Bb7 {[%emt 0:0:6]} 12. f3 {[%emt 0:0:2]} Ne5 {[%emt 0:1:38]} 13. Rc1 {[%emt 0:0:20]} Ned7 {[%emt 0:0:52]} 14. Qd4 {[%emt 0:0:53]} Qc7 {[%emt 0:0:11]
} 15. b4 {[%emt 0:0:29]} Rfd8 {[%emt 0:0:52]} 16. Rfd1 {[%emt 0:0:7]
} Rab8 {[%emt 0:1:41]} 17. Nc2 {[%emt 0:1:46]} Ba8 {[%emt 0:0:0]} 18. Na1 {[%emt 0:0:18]} Rbc8 {[%emt 0:1:11]} 19. Nb3 {[%emt 0:0:11]} Qb8 {[%emt 0:0:1]} 20. Na4 {[%emt 0:3:21]} Rc6 {[%emt 0:6:26]} 21. Rb1 {[%emt 0:2:16]
} Qb7 {[%emt 0:2:12]} 22. b5 {[%emt 0:2:11]} axb5 {[%emt 0:0:0]} 23. cxb5 {[%emt 0:0:1]} Rc2 {[%emt 0:0:32]} 24. Bd3 {[%emt 0:0:8]} Rc7 {[%emt 0:0:18]} 25. Qb2 {[%emt 0:2:42]} d5 {[%emt 0:0:46]} 26. e5 {[%emt 0:0:14]
} Ne8 {[%emt 0:0:5]} 27. Qf2 {[%emt 0:0:44]} Nxe5 {[%emt 0:0:0]} 28. Bxb6 {[%emt 0:0:30]} Nxd3 {[%emt 0:0:1]} 29. Rxd3 {[%emt 0:0:1]} Rdc8 {[%emt 0:0:41]} 30. Bxc7 {[%emt 0:0:1]} Nxc7 {[%emt 0:0:3]} 31. Nbc5 {[%emt 0:0:5]} Qb8 {[%emt 0:0:13]} 32. b6 {[%emt 0:0:1]} Bc6 {[%emt 0:0:0]} 33. Rdb3 {[%emt 0:0:30]} Bxa4 {[%emt 0:0:20]} 34. bxc7 {[%emt 0:0:10]} Qxc7 {[%emt 0:0:11]} 35. Nxa4 {[%emt 0:0:2]} Ra8 {[%emt 0:0:5]} 36. Nb6 {[%emt 0:0:30]
} Bc5 {[%emt 0:0:8]} 37. Nxa8 {[%emt 0:0:2]} Bxf2+ {[%emt 0:0:0]} 38. Kh1 {[%emt 0:0:1]} 1-0

[Event "FIDE World Rapid-ch Open 2018"]
[White "Sokolov, Andrei"]
[Black "Lintchevski, Daniil"]
[Site "St. Petersburg"]
[Round "14.83"]
[Annotator "ChessBase"]
[Result "1/2-1/2"]
[Date "2018.12.28"]
[WhiteElo "2532"]
[BlackElo "2516"]
[PlyCount "28"]
[TimeControl "900+10"]

1. Nf3 {[%emt 0:0:0]} c5 {[%emt 0:0:0]} 2. c4 {[%emt 0:0:0]} Nc6 {[%emt 0:0:0]
} 3. Nc3 {[%emt 0:0:0]} g6 {[%emt 0:0:1]} 4. e3 {[%emt 0:0:0]} Nf6 {[%emt 0:0:15]} 5. d4 {[%emt 0:0:14]} cxd4 {[%emt 0:0:3]} 6. exd4 {[%emt 0:0:14]} d5 {[%emt 0:0:1]} 7. cxd5 {[%emt 0:0:49]} Nxd5 {[%emt 0:0:0]} 8. Bc4 {[%emt 0:0:26]} Nxc3 {[%emt 0:0:25]} 9. Qb3 {[%emt 0:0:30]} e6 {[%emt 0:0:2]
} 10. bxc3 {[%emt 0:0:3]} Bg7 {[%emt 0:0:1]} 11. Ba3 {[%emt 0:0:13]
} Bf8 {[%emt 0:0:2]} 12. Bc1 {[%emt 0:0:22]} Bg7 {[%emt 0:0:0]} 13. Ba3 {[%emt 0:0:1]} Bf8 {[%emt 0:0:1]} 14. Bc1 {[%emt 0:0:1]} Bg7 {[%emt 0:1:26]} 1/2-1/2

[Event "FIDE World Rapid-ch Open 2018"]
[White "Tsoi, Dmitry"]
[Black "Shinkevich, Vitaly"]
[Site "St. Petersburg"]
[Round "14.84"]
[Annotator "NA"]
[Result "0-1"]
[Date "2018.12.28"]
[WhiteElo "2424"]
[BlackElo "2439"]
[PlyCount "120"]
[TimeControl "900+10"]

1. Nf3 {[%emt 0:0:0]} c5 {[%emt 0:0:0]} 2. g3 {[%emt 0:0:0]} g6 {[%emt 0:0:0]} 3. Bg2 {[%emt 0:0:0]} Bg7 {[%emt 0:0:1]} 4. 0-0 {[%emt 0:0:0]} Nc6 {[%emt 0:0:5]} 5. c4 {[%emt 0:0:7]} Nf6 {[%emt 0:0:15]} 6. Nc3 {[%emt 0:0:3]
} 0-0 {[%emt 0:0:3]} 7. d3 {[%emt 0:0:1]} a6 {[%emt 0:0:10]} 8. Bg5 {[%emt 0:0:12]} Rb8 {[%emt 0:0:8]} 9. Qd2 {[%emt 0:0:5]} b5 {[%emt 0:0:8]
} 10. Bh6 {[%emt 0:0:49]} d6 {[%emt 0:0:28]} 11. Bxg7 {[%emt 0:0:0]} Kxg7 {[%emt 0:0:1]} 12. b3 {[%emt 0:0:25]} Bd7 {[%emt 0:0:3]} 13. Rac1 {[%emt 0:0:49]} Qa5 {[%emt 0:0:16]} 14. Rfd1 {[%emt 0:0:29]} Rfc8 {[%emt 0:1:33]
} 15. Nb1 {[%emt 0:1:36]} Qxd2 {[%emt 0:0:8]} 16. Nfxd2 {[%emt 0:0:34]
} Nd4 {[%emt 0:0:46]} 17. Kf1 {[%emt 0:0:23]} bxc4 {[%emt 0:0:0]} 18. Nxc4 {[%emt 0:0:47]} Be6 {[%emt 0:1:13]} 19. Nc3 {[%emt 0:0:9]} h5 {[%emt 0:0:37]} 20. h3 {[%emt 0:1:2]} h4 {[%emt 0:0:25]} 21. g4 {[%emt 0:0:0]} Nd7 {[%emt 0:0:22]} 22. e3 {[%emt 0:0:10]} Nb5 {[%emt 0:0:17]} 23. Nd5 {[%emt 0:0:27]} Bxd5 {[%emt 0:0:34]} 24. Bxd5 {[%emt 0:0:3]} e6 {[%emt 0:0:1]
} 25. Bg2 {[%emt 0:0:14]} d5 {[%emt 0:0:3]} 26. Nd2 {[%emt 0:0:0]} g5 {[%emt 0:0:41]} 27. Ke2 {[%emt 0:0:18]} f6 {[%emt 0:0:12]} 28. Nb1 {[%emt 0:1:14]} Kf7 {[%emt 0:0:28]} 29. Nc3 {[%emt 0:0:5]} Ke7 {[%emt 0:0:16]
} 30. Na4 {[%emt 0:0:12]} Kd6 {[%emt 0:0:5]} 31. Rd2 {[%emt 0:0:0]} Na3 {[%emt 0:0:16]} 32. Kd1 {[%emt 0:1:26]} Rc7 {[%emt 0:0:5]} 33. Bf1 {[%emt 0:0:4]} f5 {[%emt 0:2:13]} 34. gxf5 {[%emt 0:0:33]} exf5 {[%emt 0:0:1]
} 35. e4 {[%emt 0:0:2]} d4 {[%emt 0:0:45]} 36. exf5 {[%emt 0:0:0]} Rf8 {[%emt 0:0:4]} 37. Be2 {[%emt 0:0:14]} Rxf5 {[%emt 0:1:46]} 38. Bg4 {[%emt 0:0:2]} Re5 {[%emt 0:0:48]} 39. Bxd7 {[%emt 0:0:11]} Rxd7 {[%emt 0:0:5]
} 40. Re2 {[%emt 0:0:3]} Rde7 {[%emt 0:0:49]} 41. Rxe5 {[%emt 0:0:22]
} Rxe5 {[%emt 0:0:2]} 42. Kd2 {[%emt 0:2:14]} Rf5 {[%emt 0:0:0]} 43. Ke2 {[%emt 0:0:1]} Nb5 {[%emt 0:0:3]} 44. Rc4 {[%emt 0:1:47]} Na3 {[%emt 0:0:22]} 45. Rc1 {[%emt 0:0:3]} Nb5 {[%emt 0:0:2]} 46. Rc4 {[%emt 0:0:1]
} a5 {[%emt 0:0:31]} 47. Rc1 {[%emt 0:0:8]} Nc7 {[%emt 0:0:0]} 48. Nb2 {[%emt 0:1:8]} Nd5 {[%emt 0:0:1]} 49. Nc4+ {[%emt 0:0:3]} Kd7 {[%emt 0:0:4]} 50. Ra1 {[%emt 0:1:30]} Nf4+ {[%emt 0:0:44]} 51. Kf3 {[%emt 0:0:1]
} Ke6 {[%emt 0:0:2]} 52. Nxa5 {[%emt 0:0:39]} Nxh3+ {[%emt 0:0:0]} 53. Kg2 {[%emt 0:0:2]} g4 {[%emt 0:0:20]} 54. Rf1 {[%emt 0:0:17]} Nf4+ {[%emt 0:0:4]} 55. Kg1 {[%emt 0:0:1]} Nxd3 {[%emt 0:0:7]} 56. a4 {[%emt 0:0:2]
} h3 {[%emt 0:0:18]} 57. Rd1 {[%emt 0:0:28]} Nxf2 {[%emt 0:0:0]} 58. Re1+ {[%emt 0:0:1]} Kd5 {[%emt 0:0:20]} 59. Kh2 {[%emt 0:0:15]} Ne4 {[%emt 0:0:10]} 60. Re2 {[%emt 0:0:13]} d3 {[%emt 0:0:7]} 0-1

[Event "FIDE World Rapid-ch Open 2018"]
[White "Zablotsky, Sergei"]
[Black "Drygalov, Sergey"]
[Site "St. Petersburg"]
[Round "14.85"]
[Annotator "ChessBase"]
[Result "1-0"]
[Date "2018.12.28"]
[WhiteElo "2511"]
[BlackElo "2446"]
[PlyCount "83"]
[TimeControl "900+10"]

1. Nf3 {[%emt 0:0:0]} Nf6 {[%emt 0:0:0]} 2. g3 {[%emt 0:0:0]} d5 {[%emt 0:0:1]
} 3. Bg2 {[%emt 0:0:0]} c6 {[%emt 0:0:1]} 4. 0-0 {[%emt 0:0:0]} Bf5 {[%emt 0:0:2]} 5. d3 {[%emt 0:0:5]} h6 {[%emt 0:0:7]} 6. c4 {[%emt 0:0:8]
} e6 {[%emt 0:0:3]} 7. Nc3 {[%emt 0:0:3]} Be7 {[%emt 0:0:9]
} 8. cxd5 {[%emt 0:0:14]} exd5 {[%emt 0:0:15]} 9. Qb3 {[%emt 0:0:7]} Qb6 {[%emt 0:1:32]
} 10. Qc2 {[%emt 0:0:2]} Nbd7 {[%emt 0:1:34]} 11. e4 {[%emt 0:0:0]} dxe4 {[%emt 0:0:12]} 12. dxe4 {[%emt 0:0:1]} Bh7 {[%emt 0:0:1]} 13. Be3 {[%emt 0:0:5]} Qa5 {[%emt 0:0:22]} 14. a3 {[%emt 0:0:32]} 0-0 {[%emt 0:3:3]
} 15. b4 {[%emt 0:0:10]} Qc7 {[%emt 0:0:42]} 16. Bf4 {[%emt 0:0:0]} Bd6 {[%emt 0:0:21]} 17. Bxd6 {[%emt 0:0:24]} Qxd6 {[%emt 0:0:2]} 18. Rad1 {[%emt 0:1:9]} Qe7 {[%emt 0:0:5]} 19. Rfe1 {[%emt 0:0:3]} a5 {[%emt 0:0:24]
} 20. Qb3 {[%emt 0:0:3]} axb4 {[%emt 0:0:12]} 21. axb4 {[%emt 0:0:2]
} Nb6 {[%emt 0:1:56]} 22. Nd4 {[%emt 0:2:37]} Rfd8 {[%emt 0:0:0]} 23. e5 {[%emt 0:1:18]} Nfd5 {[%emt 0:0:37]} 24. Nxd5 {[%emt 0:2:25]} Nxd5 {[%emt 0:0:26]} 25. e6 {[%emt 0:0:43]} f6 {[%emt 0:0:38]} 26. b5 {[%emt 0:1:17]
} c5 {[%emt 0:2:15]} 27. Bxd5 {[%emt 0:0:25]} cxd4 {[%emt 0:0:0]} 28. Bxb7 {[%emt 0:1:25]} Ra3 {[%emt 0:0:25]} 29. Qb2 {[%emt 0:0:18]} d3 {[%emt 0:1:52]} 30. b6 {[%emt 0:1:34]} Ra4 {[%emt 0:0:2]} 31. Qc3 {[%emt 0:0:0]} Bf5 {[%emt 0:1:32]} 32. Bc8 {[%emt 0:1:4]} Ra3 {[%emt 0:0:21]} 33. Qc4 {[%emt 0:0:26]} d2 {[%emt 0:0:9]} 34. Re3 {[%emt 0:0:30]} Rxe3 {[%emt 0:0:35]
} 35. fxe3 {[%emt 0:0:1]} Bg4 {[%emt 0:0:7]} 36. Qxg4 {[%emt 0:0:17]
} Rxc8 {[%emt 0:0:2]} 37. Rxd2 {[%emt 0:0:5]} Qc5 {[%emt 0:0:0]} 38. Qd4 {[%emt 0:1:30]} Qh5 {[%emt 0:0:3]} 39. b7 {[%emt 0:0:38]} Rc1+ {[%emt 0:0:8]} 40. Kg2 {[%emt 0:0:1]} Qb5 {[%emt 0:0:13]} 41. Qd8+ {[%emt 0:0:8]
} Kh7 {[%emt 0:0:2]} 42. Qd3+ {[%emt 0:0:3]} 1-0

[Event "FIDE World Rapid-ch Open 2018"]
[White "Borisenko, Viacheslav"]
[Black "Golubov, Saveliy"]
[Site "St. Petersburg"]
[Round "14.86"]
[Annotator "ChessBase"]
[Result "1/2-1/2"]
[Date "2018.12.28"]
[WhiteElo "2289"]
[BlackElo "2482"]
[PlyCount "66"]
[TimeControl "900+10"]

1. e4 {[%emt 0:0:0]} c5 {[%emt 0:0:0]} 2. Nf3 {[%emt 0:0:0]} e6 {[%emt 0:0:0]} 3. c3 {[%emt 0:0:0]} d5 {[%emt 0:0:0]} 4. exd5 {[%emt 0:0:0]} exd5 {[%emt 0:0:0]} 5. d4 {[%emt 0:0:0]} Nf6 {[%emt 0:0:0]} 6. Be2 {[%emt 0:0:16]
} Nc6 {[%emt 0:0:0]} 7. 0-0 {[%emt 0:0:3]} h6 {[%emt 0:0:25]
} 8. Re1 {[%emt 0:0:45]} Bd6 {[%emt 0:0:5]} 9. Bd3+ {[%emt 0:1:1]} Be6 {[%emt 0:0:2]
} 10. dxc5 {[%emt 0:0:7]} Bxc5 {[%emt 0:0:4]} 11. Be3 {[%emt 0:0:11]
} Bxe3 {[%emt 0:0:16]} 12. Rxe3 {[%emt 0:0:1]} 0-0 {[%emt 0:0:0]} 13. Nbd2 {[%emt 0:0:28]} d4 {[%emt 0:0:14]} 14. cxd4 {[%emt 0:0:14]} Nxd4 {[%emt 0:0:2]} 15. h3 {[%emt 0:3:57]} Nf5 {[%emt 0:0:28]} 16. Bxf5 {[%emt 0:0:5]
} Bxf5 {[%emt 0:0:2]} 17. Nb3 {[%emt 0:0:25]} Qxd1+ {[%emt 0:0:0]} 18. Rxd1 {[%emt 0:0:2]} Rfd8 {[%emt 0:0:2]} 19. Rxd8+ {[%emt 0:0:0]} Rxd8 {[%emt 0:0:1]} 20. Re7 {[%emt 0:0:7]} Rd1+ {[%emt 0:0:15]} 21. Re1 {[%emt 0:0:34]} Rd7 {[%emt 0:0:1]} 22. a3 {[%emt 0:0:37]} b6 {[%emt 0:0:0]} 23. Ne5 {[%emt 0:0:6]} Rc7 {[%emt 0:0:9]} 24. Nd4 {[%emt 0:0:4]} Be4 {[%emt 0:0:11]} 25. Ng4 {[%emt 0:3:21]} Nxg4 {[%emt 0:0:18]} 26. hxg4 {[%emt 0:0:2]
} Bd5 {[%emt 0:0:1]} 27. f3 {[%emt 0:0:16]} g6 {[%emt 0:0:15]
} 28. Kf2 {[%emt 0:0:4]} Kg7 {[%emt 0:0:38]} 29. Rd1 {[%emt 0:0:4]} a6 {[%emt 0:0:8]
} 30. Ke3 {[%emt 0:0:36]} Kf6 {[%emt 0:0:7]} 31. Rh1 {[%emt 0:0:0]} Kg7 {[%emt 0:0:2]} 32. Rd1 {[%emt 0:0:3]} b5 {[%emt 0:1:2]} 33. Rd2 {[%emt 0:1:9]} Rb7 {[%emt 0:0:44] Ke4} 1/2-1/2

[Event "FIDE World Rapid-ch Open 2018"]
[White "Lobanov, Sergei"]
[Black "Baron, Tal"]
[Site "St. Petersburg"]
[Round "14.87"]
[Annotator "ChessBase"]
[Result "1-0"]
[Date "2018.12.28"]
[WhiteElo "2526"]
[BlackElo "2532"]
[PlyCount "155"]
[TimeControl "900+10"]

1. e4 {[%emt 0:0:0]} e5 {[%emt 0:0:21]} 2. Nf3 {[%emt 0:0:0]} Nc6 {[%emt 0:0:2]
} 3. Bb5 {[%emt 0:0:0]} a6 {[%emt 0:0:1]} 4. Ba4 {[%emt 0:0:0]} Nf6 {[%emt 0:0:2]} 5. 0-0 {[%emt 0:0:0]} Be7 {[%emt 0:0:5]} 6. Re1 {[%emt 0:0:0]
} b5 {[%emt 0:0:1]} 7. Bb3 {[%emt 0:0:1]} d6 {[%emt 0:0:3]} 8. c3 {[%emt 0:0:1]} 0-0 {[%emt 0:0:2]} 9. h3 {[%emt 0:0:1]} Bb7 {[%emt 0:0:2]
} 10. d4 {[%emt 0:0:4]} Nd7 {[%emt 0:0:7]} 11. Nbd2 {[%emt 0:0:0]} exd4 {[%emt 0:0:3]} 12. cxd4 {[%emt 0:0:1]} Bf6 {[%emt 0:0:15]} 13. Nf1 {[%emt 0:0:5]} Na5 {[%emt 0:0:2]} 14. Bc2 {[%emt 0:0:1]} Re8 {[%emt 0:0:1]
} 15. Ng3 {[%emt 0:0:26]} g6 {[%emt 0:0:9]} 16. Rb1 {[%emt 0:0:0]} c5 {[%emt 0:0:7]} 17. d5 {[%emt 0:0:1]} Nc4 {[%emt 0:0:2]} 18. b3 {[%emt 0:0:24]} Nce5 {[%emt 0:0:48]} 19. Nxe5 {[%emt 0:0:3]} Bxe5 {[%emt 0:0:0]} 20. f4 {[%emt 0:0:30]} Bc3 {[%emt 0:0:37]} 21. Rf1 {[%emt 0:0:19]} Bg7 {[%emt 0:1:2]} 22. Kh2 {[%emt 0:1:11]} a5 {[%emt 0:0:47]} 23. Bd3 {[%emt 0:1:26]
} Ba6 {[%emt 0:0:31]} 24. a4 {[%emt 0:1:58]} bxa4 {[%emt 0:0:0]} 25. Bxa6 {[%emt 0:0:2]} Rxa6 {[%emt 0:0:1]} 26. bxa4 {[%emt 0:0:1]} Rb6 {[%emt 0:0:4]} 27. Bd2 {[%emt 0:0:32]} Rxb1 {[%emt 0:0:2]} 28. Qxb1 {[%emt 0:0:4]
} Qb6 {[%emt 0:0:4]} 29. Qxb6 {[%emt 0:1:11]} Nxb6 {[%emt 0:0:0]} 30. Bxa5 {[%emt 0:0:2]} Nxa4 {[%emt 0:0:3]} 31. e5 {[%emt 0:2:5]} dxe5 {[%emt 0:0:56]} 32. d6 {[%emt 0:0:10]} exf4 {[%emt 0:0:6]} 33. Rxf4 {[%emt 0:0:48]
} Be5 {[%emt 0:1:3]} 34. d7 {[%emt 0:0:5]} Rd8 {[%emt 0:0:0]} 35. Bxd8 {[%emt 0:3:51]} Bxf4 {[%emt 0:0:2]} 36. Ba5 {[%emt 0:0:50]} Bg5 {[%emt 0:0:1]} 37. Ne4 {[%emt 0:0:1]} Be7 {[%emt 0:0:2]} 38. d8=Q+ {[%emt 0:1:35]
} Bxd8 {[%emt 0:0:1]} 39. Bxd8 {[%emt 0:0:2]} f5 {[%emt 0:0:0]} 40. Nd6 {[%emt 0:0:1]} Nc3 {[%emt 0:0:35]} 41. Kg3 {[%emt 0:0:5]} Ne2+ {[%emt 0:0:3]} 42. Kf2 {[%emt 0:0:48]} Nf4 {[%emt 0:0:2]} 43. Bb6 {[%emt 0:1:7]
} Ne6 {[%emt 0:0:5]} 44. Ke3 {[%emt 0:0:18]} Kg7 {[%emt 0:0:0]} 45. Nb7 {[%emt 0:0:1]} c4 {[%emt 0:0:15]} 46. Ba5 {[%emt 0:0:10]} Kf6 {[%emt 0:0:8]} 47. Bc3+ {[%emt 0:0:17]} Kg5 {[%emt 0:0:5]} 48. Nd6 {[%emt 0:0:1]
} Nc7 {[%emt 0:1:37]} 49. Kf3 {[%emt 0:0:26]} Nd5 {[%emt 0:0:0]} 50. Bd2+ {[%emt 0:0:34]} Kf6 {[%emt 0:0:47]} 51. Nxc4 {[%emt 0:0:1]} g5 {[%emt 0:0:6]} 52. Ne3 {[%emt 0:0:14]} Ne7 {[%emt 0:0:30]} 53. Bb4 {[%emt 0:0:26]
} Ng6 {[%emt 0:0:15]} 54. Bc3+ {[%emt 0:0:7]} Ke6 {[%emt 0:0:0]} 55. g4 {[%emt 0:0:15]} Nh4+ {[%emt 0:0:10]} 56. Kf2 {[%emt 0:0:10]} fxg4 {[%emt 0:0:13]} 57. hxg4 {[%emt 0:0:1]} Ng6 {[%emt 0:0:36]} 58. Nf1 {[%emt 0:0:3]
} Nf4 {[%emt 0:0:36]} 59. Ng3 {[%emt 0:0:17]} Kf7 {[%emt 0:0:0]} 60. Bd2 {[%emt 0:0:11]} Nd3+ {[%emt 0:0:10]} 61. Kg2 {[%emt 0:0:15]} Ne5 {[%emt 0:0:36]} 62. Kh3 {[%emt 0:0:1]} h6 {[%emt 0:0:32]} 63. Nh5 {[%emt 0:0:3]
} Nc4 {[%emt 0:0:5]} 64. Bc3 {[%emt 0:0:3]} Ne3 {[%emt 0:0:0]} 65. Kg3 {[%emt 0:0:8]} Nd5 {[%emt 0:0:0]} 66. Bd4 {[%emt 0:0:16]} Nc7 {[%emt 0:0:32]} 67. Kf3 {[%emt 0:0:3]} Ne6 {[%emt 0:0:0]} 68. Ke4 {[%emt 0:0:9]
} Kg6 {[%emt 0:0:25]} 69. Ke5 {[%emt 0:0:1]} Nc7 {[%emt 0:0:0]} 70. Bb2 {[%emt 0:0:11]} Na6 {[%emt 0:0:8]} 71. Ba3 {[%emt 0:0:8]} Nc7 {[%emt 0:0:1]} 72. Ng3 {[%emt 0:0:26]} Ne8 {[%emt 0:0:38]} 73. Nh5 {[%emt 0:0:10]
} Nc7 {[%emt 0:0:2]} 74. Bb4 {[%emt 0:0:3]} Ne8 {[%emt 0:0:0]} 75. Bd6 {[%emt 0:0:32]} Kf7 {[%emt 0:0:4]} 76. Bb8 {[%emt 0:0:3]} Ke7 {[%emt 0:1:28]} 77. Kf5 {[%emt 0:0:3]} Kd7 {[%emt 0:0:39]} 78. Nf6+ {[%emt 0:0:8]
} 1-0

[Event "FIDE World Rapid-ch Open 2018"]
[White "Makarov, Marat"]
[Black "Chen, Qi b"]
[Site "St. Petersburg"]
[Round "14.88"]
[Annotator "ChessBase"]
[Result "1/2-1/2"]
[Date "2018.12.28"]
[WhiteElo "2505"]
[BlackElo "2437"]
[PlyCount "56"]
[TimeControl "900+10"]

1. Nf3 {[%emt 0:1:8]} Nf6 {[%emt 0:0:0]} 2. c4 {[%emt 0:0:4]} g6 {[%emt 0:0:0]
} 3. g3 {[%emt 0:0:3]} Bg7 {[%emt 0:0:0]} 4. d4 {[%emt 0:0:0]} 0-0 {[%emt 0:0:0]} 5. Bg2 {[%emt 0:0:1]} d6 {[%emt 0:0:1]} 6. 0-0 {[%emt 0:0:5]
} Nc6 {[%emt 0:0:1]} 7. Nc3 {[%emt 0:0:2]} e5 {[%emt 0:0:1]
} 8. dxe5 {[%emt 0:0:10]} dxe5 {[%emt 0:0:2]} 9. Qxd8 {[%emt 0:0:2]} Rxd8 {[%emt 0:0:2]} 10. Bg5 {[%emt 0:0:2]} Be6 {[%emt 0:0:17]} 11. Nd2 {[%emt 0:0:18]
} h6 {[%emt 0:0:9]} 12. Bxf6 {[%emt 0:0:5]} Rxd2 {[%emt 0:0:0]} 13. Bxg7 {[%emt 0:0:3]} Kxg7 {[%emt 0:0:1]} 14. Bxc6 {[%emt 0:0:2]} bxc6 {[%emt 0:0:2]} 15. b3 {[%emt 0:0:1]} Rad8 {[%emt 0:0:2]} 16. Rfd1 {[%emt 0:0:49]
} R8d4 {[%emt 0:0:19]} 17. Rxd2 {[%emt 0:1:0]} Rxd2 {[%emt 0:0:0]} 18. Rc1 {[%emt 0:1:29]} Rb2 {[%emt 0:2:0]} 19. Kf1 {[%emt 0:0:36]} Kf6 {[%emt 0:1:43]} 20. Ke1 {[%emt 0:4:39]} Bf5 {[%emt 0:0:48]} 21. Kd1 {[%emt 0:0:57]
} h5 {[%emt 0:0:34]} 22. Ra1 {[%emt 0:0:55]} g5 {[%emt 0:2:0]
} 23. Ke1 {[%emt 0:3:16]} Rc2 {[%emt 0:2:55]} 24. Nd1 {[%emt 0:0:18]} g4 {[%emt 0:1:45]
} 25. Ne3 {[%emt 0:0:13]} Rb2 {[%emt 0:0:1]} 26. Nd1 {[%emt 0:0:0]} Rc2 {[%emt 0:0:1]} 27. Ne3 {[%emt 0:0:2]} Rb2 {[%emt 0:0:2]} 28. Nd1 {[%emt 0:0:1]} Rc2 {[%emt 0:0:7]} 1/2-1/2

[Event "FIDE World Rapid-ch Open 2018"]
[White "Sanikidze, Tornike"]
[Black "Shubin, Kirill"]
[Site "St. Petersburg"]
[Round "14.89"]
[Annotator "ChessBase"]
[Result "1-0"]
[Date "2018.12.28"]
[WhiteElo "2507"]
[BlackElo "2334"]
[PlyCount "63"]
[TimeControl "900+10"]

1. d4 {[%emt 0:0:0]} e6 {[%emt 0:0:0]} 2. c4 {[%emt 0:0:0]} Nf6 {[%emt 0:0:0]} 3. Nf3 {[%emt 0:0:0]} Bb4+ {[%emt 0:0:0]} 4. Bd2 {[%emt 0:0:2]} a5 {[%emt 0:0:0]} 5. Nc3 {[%emt 0:0:1]} b6 {[%emt 0:0:6]} 6. e3 {[%emt 0:0:0]} Bb7 {[%emt 0:0:4]} 7. Bd3 {[%emt 0:0:2]} d5 {[%emt 0:0:2]} 8. cxd5 {[%emt 0:0:6]} exd5 {[%emt 0:0:4]} 9. Qc2 {[%emt 0:0:6]} 0-0 {[%emt 0:0:9]
} 10. 0-0 {[%emt 0:0:2]} Nbd7 {[%emt 0:0:17]} 11. a3 {[%emt 0:0:0]} Be7 {[%emt 0:0:6]} 12. Ne5 {[%emt 0:0:3]} c5 {[%emt 0:0:29]} 13. Rad1 {[%emt 0:0:2]} c4 {[%emt 0:0:48]} 14. Bf5 {[%emt 0:0:21]} g6 {[%emt 0:0:0]} 15. Bh3 {[%emt 0:0:1]} Nxe5 {[%emt 0:1:19]} 16. dxe5 {[%emt 0:0:11]
} Nd7 {[%emt 0:0:34]} 17. f4 {[%emt 0:1:59]} Nc5 {[%emt 0:0:12]} 18. f5 {[%emt 0:0:1]
} Nd3 {[%emt 0:0:57]} 19. f6 {[%emt 0:0:1]} Bc5 {[%emt 0:0:0]} 20. e6 {[%emt 0:0:0]} Qd6 {[%emt 0:1:18]} 21. e7 {[%emt 0:0:8]} Rfe8 {[%emt 0:0:2]} 22. Nb5 {[%emt 0:0:39]} Qe5 {[%emt 0:0:17]} 23. Bd7 {[%emt 0:0:1]
} Reb8 {[%emt 0:2:38]} 24. Kh1 {[%emt 0:0:13]} d4 {[%emt 0:0:0]} 25. exd4 {[%emt 0:0:48]} Qe2 {[%emt 0:0:51]} 26. Bh3 {[%emt 0:0:21]} Qh5 {[%emt 0:1:46]} 27. dxc5 {[%emt 0:0:20]} Qxh3 {[%emt 0:0:3]} 28. Bf4 {[%emt 0:0:2]
} Nxf4 {[%emt 0:1:12]} 29. Rxf4 {[%emt 0:0:2]} bxc5 {[%emt 0:0:0]} 30. Nc7 {[%emt 0:0:10]} Qe3 {[%emt 0:0:30]} 31. Nxa8 {[%emt 0:0:19]} h5 {[%emt 0:0:17]} 32. Qf2 {[%emt 0:1:14]} 1-0